Cogmind - Beta 12 X1 @@@ ROGUE MODE // 2022.08.11 @ 15:33:10 Player: Momo Result: Destroyed by G-34 Mercenary with Small Laser Performance ------------- Evolutions (1) 500 Regions Visited (3) 600 Robots Destroyed (23) 115 Value Destroyed (660) 660 Prototype IDs (0) 0 Alien Tech Used (0) 0 Bonus (0) 0 TOTAL SCORE: 1875 Bonus ------- None Cogmind --------- Core Integrity 0/400 Matter 175/300 Energy 100/100 System Corruption 5% Temperature Cool (6) Movement Walking (260) Ox2 Location -9/Storage Parts ------- > --- POWER (1) -------- (None) > --- PROPULSION (4) --- Aluminum Leg > --- UTILITY (2) ------ Large Storage Unit > --- WEAPON (2) ------- Heavy Assault Rifle > --- INVENTORY (15) --- Large Matter Pod (150) Trap Scanner Signal Interpreter Terrain Scan Processor Hacking Suite Hacking Suite Hacking Suite Hacking Suite Heavy Hammer Peak State ------------ > --- POWER ------------ Ion Engine > --- PROPULSION ------- Aluminum Leg Aluminum Leg Aluminum Leg Aluminum Leg > --- UTILITY ---------- Large Storage Unit Trap Scanner > --- WEAPON ----------- Shock Rifle Shock Rifle > --- INVENTORY -------- Large Matter Pod Signal Interpreter Terrain Scan Processor Hacking Suite Hacking Suite Hacking Suite Hacking Suite [Rating: 16] Favorites ----------- Power Ion Engine Engine Ion Engine Propulsion Aluminum Leg Treads Light Treads Leg Aluminum Leg Wheel Wheel Utility Large Storage Unit Device Trap Scanner Storage Large Storage Unit Protection Light Armor Plating Weapon Medium Laser Energy Gun Medium Laser Ballistic Gun Heavy Assault Rifle Build | -11 -10 -9 -9 ------- Run | Scr Mat Mat Sto Slots Evolved 2 | . . 2 . Power . | . . . . Propulsion 2 | . . 2 . Utility . | . . . . Weapon . | . . . . Parts Attached 24 | 6 2 15 1 Power 4 | 1 . 2 1 Engine 4 | 1 . 2 1 Core . | . . . . Reactor . | . . . . Propulsion 8 | 2 . 6 . Treads 2 | 2 . . . Leg 5 | . . 5 . Wheel 1 | . . 1 . Hover . | . . . . Flight . | . . . . Utility 5 | 1 2 2 . Device 2 | . 1 1 . Storage 2 | 1 1 . . Processor . | . . . . Hackware . | . . . . Protection 1 | . . 1 . Artifact . | . . . . Weapon 7 | 2 . 5 . Energy Gun 6 | 2 . 4 . Energy Cannon . | . . . . Ballistic Gun 1 | . . 1 . Ballistic Cannon . | . . . . Launcher . | . . . . Special Weapon . | . . . . Impact Weapon . | . . . . Slashing Weapon . | . . . . Piercing Weapon . | . . . . Special Melee Weapon . | . . . . Unidentified Prototypes . | . . . . Corrupted Parts 3 | . . 3 . System Corruption 5 | . . 5 . Parts Lost 18 | . . 15 3 Power 4 | . . 3 1 Propulsion 7 | . . 6 1 Utility 2 | . . 1 1 Weapon 5 | . . 5 . Highest Loss Streak 6 | . . 6 3 To Critical Strikes . | . . . . Average Slot Usage (%) 73 | . 88 69 50 Engine 8 | . 14 5 4 Treads 12 | . 28 5 . Leg 12 | . . 18 17 Wheel 1 | . . 2 . Device 5 | . 2 7 . Storage 11 | . 14 11 11 Protection 1 | . . . 7 Energy Gun 17 | . 28 15 . Ballistic Gun 2 | . . 2 11 Naked Turns . | . . . . Heaviest Build 33 | 14 30 33 26 Greatest Support 40 | 40 40 40 20 Greatest Overweight (x) 6 | 4 . 6 1 Average Overweight (x) . | . . . 1 Largest Inventory Capacity 15 | 8 15 15 15 Average Capacity 12 | 7 8 15 15 Most Carried 10 | . 2 10 10 Average Carried 4 | . . 5 9 Final Capacity 15 | 8 15 15 15 Final Carried 10 | . 2 10 9 Class Distribution -------------------- 87% | Mutant 12% | Scavenger-Mutant Dominant Class ---------------- Mutant | -10/Materials Mutant | -9/Materials Mutant | -9/Storage Resources | -11 -10 -9 -9 ----------- Run | Scr Mat Mat Sto Matter Collected 521 | 260 . 261 . Remotely . | . . . . Salvage Created 1115 | . 245 824 46 Parts 54 | . 12 40 2 Haulers Intercepted 2 | . 1 1 . Recyclers Shooed . | . . . . Parts Field Recycled . | . . . . Retrieved Matter . | . . . . Parts Self-Destructed . | . . . . Prevented . | . . . . Kills | -11 -10 -9 -9 ------- Run | Scr Mat Mat Sto Combat Hostiles Destroyed 16 | . 4 11 1 Guns 15 | . 3 11 1 AOE 1 | . 1 . . Classes Destroyed 7 | . 3 4 . Builder 1 | . . 1 . Tunneler 1 | . . 1 . Hauler 2 | . 1 1 . Recycler 2 | . . 2 . Watcher 1 | . 1 . . Grunt 13 | . 4 8 1 Sentry 3 | . . 3 . Best Kill Streak 4 | . 3 4 1 Combat Bots Only 3 | . 2 3 1 Max Kills in Single Turn 1 | . 1 1 1 Gunslinging . | . . . . Exploded 1 | . 1 . . Melee . | . . . . Uniques/NPCs Destroyed . | . . . . Combat | -11 -10 -9 -9 -------- Run | Scr Mat Mat Sto Damage Taken 1935 | . 236 1245 454 Core 474 | . 64 260 150 Absorbed by Shields . | . . . . Core Remaining (%) 87 | 100 74 . . Volleys Fired 104 | . 20 56 28 Largest 2 | . 2 2 1 Hottest 115 | . 90 115 23 Shots Fired 154 | . 40 87 27 Gun 154 | . 40 87 27 Cannon . | . . . . Launcher . | . . . . Special . | . . . . Kinetic 37 | . . 10 27 Thermal 52 | . 20 32 . Explosive . | . . . . Electromagnetic 65 | . 20 45 . Robot Hit Streak 19 | . 12 13 19 Robot Miss Streak 3 | . 1 3 2 Penetration Max . | . . . . Secondary Targets . | . . . . Shots Hit Robots 113 | . 31 60 22 Core Hits 39 | . 11 25 3 Critical Kills . | . . . . Critical Parts Destroyed . | . . . . Critical Strikes 8 | . 4 4 . Burn 6 | . 3 3 . Corrupt 2 | . 1 1 . Melee Attacks . | . . . . Impact . | . . . . Slashing . | . . . . Piercing . | . . . . Sneak Attacks . | . . . . Combat Hostiles . | . . . . Follow-up Attacks . | . . . . Damage Inflicted 1844 | . 466 1045 333 Guns 1700 | . 400 967 333 Cannons . | . . . . Explosions 144 | . 66 78 . Melee . | . . . . Ramming . | . . . . Kinetic 469 | . . 136 333 Thermal 672 | . 265 407 . Explosive . | . . . . Electromagnetic 703 | . 201 502 . Impact . | . . . . Slashing . | . . . . Piercing . | . . . . Highest Corruption 5 | . . 5 5 Average Corruption 4 | . . 4 5 Corruption Purged . | . . . . Corruption Blocked . | . . . . Effects 8 | . . 5 3 Matter Fused 2 | . . 1 1 Heat Flow Errors 1 | . . . 1 Energy Discharges 1 | . . 1 . Data Loss (minor) 1 | . . 1 . Alerts 1 | . . 1 . Weapon Failures 2 | . . 1 1 Overload Shots . | . . . . Overflow Damage 16 | . . 16 . Projectiles . | . . . . Explosions 16 | . . 16 . Melee . | . . . . Knockbacks . | . . . . Impact . | . . . . Kinetic . | . . . . Secondary . | . . . . Self-Inflicted Damage 34 | . . 34 . Shots 1 | . . 1 . Rammed . | . . . . Targets Rammed . | . . . . Kicked . | . . . . Crushed . | . . . . Highest Temperature 443 | . 443 190 168 Average Temperature 103 | . 166 73 69 Received Heat Transfer 1050 | . 168 630 252 Effects 2 | . 2 . . Shutdowns 2 | . 2 . . Siege Activations . | . . . . Robots Corrupted . | . . . . Combat Hostiles . | . . . . Parts Fried 1 | . . 1 . Impact Corruptions . | . . . . Robots Melted . | . . . . Combat Hostiles . | . . . . Parts Melted 2 | . . 2 . Heat Transferred 2161 | . 864 1297 . Parts Sabotaged . | . . . . Parts Stolen . | . . . . Parts Stripped . | . . . . Power Chain Reactions 2 | . 1 1 . Missiles Intercepted . | . . . . Alert | -11 -10 -9 -9 ------- Run | Scr Mat Mat Sto Peak Influence 292 | . 146 292 59 Initial 61 | . . 61 49 Average 127 | . 109 164 48 Maximum Alert Level 1 | . . 1 . Low Security (%) 85 | 100 100 73 100 Level 1 14 | . . 26 . Level 2 . | . . . . Level 3 . | . . . . Level 4 . | . . . . Level 5 . | . . . . High Security . | . . . . Max Security . | . . . . Squads Dispatched 1 | . . 1 . Investigation . | . . . . Extermination . | . . . . Reinforcement 1 | . . 1 . Assault . | . . . . Garrison . | . . . . Intercept . | . . . . Searches Triggered . | . . . . Construction Impeded 1 | . . 1 . Haulers Reinforced . | . . . . Active Scanning Responses . | . . . . Cargo Convoy Interrupts . | . . . . Stealth | -11 -10 -9 -9 --------- Run | Scr Mat Mat Sto Distress Signals 3 | . 2 1 . Communications Jammed . | . . . . Distress Signals . | . . . . Times Spotted 30 | . 8 19 3 Peak Tracking Total 6 | . 5 6 3 Tactical Retreats 1 | . . 1 . Traps | -11 -10 -9 -9 ------- Run | Scr Mat Mat Sto Traps Triggered . | . . . . Indirectly . | . . . . Trap Hack Attempts . | . . . . Triggered . | . . . . Disarmed . | . . . . Reprogrammed . | . . . . Reused . | . . . . Traps Extracted . | . . . . Installed . | . . . . Triggered . | . . . . Machines | -11 -10 -9 -9 ---------- Run | Scr Mat Mat Sto Machines Disabled . | . . . . Max in Single Turn . | . . . . Machines Sabotaged . | . . . . Garrisons Compromised . | . . . . Overloaded Fab Kills . | . . . . Hacking | -11 -10 -9 -9 --------- Run | Scr Mat Mat Sto Machines Accessed 2 | . 1 1 . Terminals 2 | . 1 1 . Fabricators . | . . . . Repair Stations . | . . . . Recycling Units . | . . . . Scanalyzers . | . . . . Garrison Access . | . . . . Total Hacks 7 | . 5 2 . Successful 1 | . 1 . . Failed 6 | . 4 2 . Catastrophic . | . . . . Database Lockouts . | . . . . Manual . | . . . . Terminals 7 | . 5 2 . Fabricators . | . . . . Repair Stations . | . . . . Recycling Units . | . . . . Scanalyzers . | . . . . Garrison Access . | . . . . Terminal Hacks 1 | . 1 . . Locate Traps 1 | . 1 . . Fabricator Hacks . | . . . . Repair Station Hacks . | . . . . Recycling Unit Hacks . | . . . . Scanalyzer . | . . . . Garrison Access Hacks . | . . . . Unauthorized Hacks . | . . . . Terminals . | . . . . Fabricators . | . . . . Repair Stations . | . . . . Recycling Units . | . . . . Scanalyzers . | . . . . Garrison Access . | . . . . Data Cores Recovered . | . . . . Used . | . . . . Hacking Detections 2 | . 1 1 . Full Trace Events . | . . . . Feedback Events . | . . . . Feedback Blocked . | . . . . Robot Schematics Acquired . | . . . . Robots Built . | . . . . Authchips . | . . . . Time . | . . . . Total Robot Build Rating . | . . . . Part Schematics Acquired . | . . . . Parts Built . | . . . . Authchips . | . . . . Time . | . . . . Total Part Build Rating . | . . . . Parts Repaired . | . . . . Time . | . . . . Parts Recycled . | . . . . Recycled Matter . | . . . . Retrieved Matter . | . . . . Retrieved Components . | . . . . Parts Scanalyzed . | . . . . Part Schematics Acquired . | . . . . Parts Damaged . | . . . . Bothacking | -11 -10 -9 -9 ------------ Run | Scr Mat Mat Sto Used RIF Installer . | . . . . Robots Hacked . | . . . . Non-combat . | . . . . Combat . | . . . . Robot Hacks Applied . | . . . . Relay Couplers Released . | . . . . Fabnet Peak Effective % . | . . . . Robots Rewired . | . . . . Allies Hacked . | . . . . Hacks Repelled . | . . . . Allies | -11 -10 -9 -9 -------- Run | Scr Mat Mat Sto Total Allies . | . . . . Largest Group . | . . . . Highest-Rated Group . | . . . . Highest-Rated Ally . | . . . . Total Orders . | . . . . Ally Attacks . | . . . . Total Damage . | . . . . Kills . | . . . . Allies Corrupted . | . . . . Allies Melted . | . . . . Intel | -11 -10 -9 -9 ------- Run | Scr Mat Mat Sto Robot Analysis Total . | . . . . Derelict Logs Recovered . | . . . . Drone Launches . | . . . . Drone Recoveries . | . . . . Exploration | -11 -10 -9 -9 ------------- Run | Scr Mat Mat Sto Turns Passed 1109 | 59 341 603 106 Spaces Moved 449 | 35 172 216 26 Core 15 | 14 . 1 . Treads 241 | 21 172 48 . Legs 193 | . . 167 26 Wheels . | . . . . Hover . | . . . . Flight . | . . . . Fastest Speed 50 | 50 160 120 190 Average Speed 173 | 146 160 185 190 Slowest Speed 350 | 250 160 350 190 Overloaded Moves . | . . . . Propulsion Burnouts . | . . . . Robots Hopped . | . . . . Cave-ins Triggered . | . . . . Exploration Rate (%) 17 | 5 35 20 8 Regions Visited 3 Branch Regions 1 Pre-discovered Areas . | . . . . Known Exits Taken . | . . . . Unknown Exits Taken 3 | 1 1 1 . Scrap Searched . | . . . . Spaces Dug . | . . . . Terrain Destroyed 8 | . 4 4 . Melee . | . . . . Projectile . | . . . . AOE 8 | . 4 4 . Terrain Rammed . | . . . . Walls Destroyed . | . . . . Machines Disabled . | . . . . Actions | -11 -10 -9 -9 --------- Run | Scr Mat Mat Sto Total 616 | 40 197 324 55 Wait 30 | . 1 29 . Move 446 | 34 171 215 26 Hop . | . . . . Pick Up 9 | . 2 7 . Fast Attach 23 | 6 2 15 . Attach 1 | . . . 1 Detach 1 | . . 1 . Swap . | . . . . Drop 2 | . 1 1 . Fire 104 | . 20 56 28 Melee . | . . . . Ram . | . . . . Kick . | . . . . Crush . | . . . . Escape Stasis . | . . . . Rewire . | . . . . Trap . | . . . . Miscellaneous . | . . . . Route ------- -11/Scrapyard -10/Materials -9/Materials (discovered 2 exits: [*Sto x2]) -9/Storage History --------- Turn | Location | Event 4 | -11/Scrapyard | Discovered new exit (range 16) 60 | -11/Scrapyard | Entered Materials 289 | -10/Materials | Discovered new exit (range 15) 308 | -10/Materials | Build established: Mutant 401 | -10/Materials | Entered another Materials area 401 | -9/Materials | Evolved 2 slots: Propulsion x2 598 | -9/Materials | Lost 6 parts (1p2n1u2w) 603 | -9/Materials | Discovered new exit (range 14) 685 | -9/Materials | Discovered new exit (range 9) 718 | -9/Materials | Core integrity fell below 50% 775 | -9/Materials | Lost 3 parts (2n1w) 963 | -9/Materials | Lost 4 parts (1p2n1w) 1004 | -9/Materials | Entered Storage 1094 | -9/Storage | Core integrity fell below 20% 1110 | -9/Storage | Destroyed by G-34 Mercenary with Small Laser Last Messages --------------- 00876_ System corrupted: Component data lost. 00913_ System corrupted: Energy discharge (-87). 00915_ Aluminum Leg destroyed. 00920_ Ion Engine destroyed. 00928_ System corrupted: Shock Rifle failed to cycle. 00929_ Shock Rifle destroyed. 00932_ Wheel destroyed. 00935_ Y-45 Defender misfires. 00937_ Y-45 Defender destroyed. 00951_ Acquired Lgt. Armor Plating. 01002_ R-06 Scavenger collects Shock Rifle. LOCATION=UNKNOWN GOAL=ESCAPE 01018_ System corrupted: Matter fused (-9). 01066_ Aluminum Leg destroyed. 01069_ G-34 Mercenary destroyed. 01078_ Lgt. Armor Plating destroyed. 01079_ System corrupted: Hvy. Assault Rifle jammed. 01086_ System corrupted: Heat flow error (+180). 01091_ Ion Engine destroyed. Map ----- +----------------------------------------------------+ | | | | | | | | | | | | | | | | | | | | | | | | | ??????????????????????????#######????????????????? | | ?????????????????????????? ????????????????? | | ?????????????????????????? ????????????????? | | ??????????????????????????? """ ?????????????????? | | ??????????????????????????? """ ?????????????????? | | ????????????????????????????"""??????????????????? | | ???????????????????????????? ??????????????????? | | ????????????????????????#####+################???? | | ????????????????????????# #???? | | ????????????????????????# #???? | | ????????????????????????# #???? | | ????????????????????????# ##################???? | | ????????????????????????# #????????????????????? | | ????????????????????????#@ #????????????????????? | | ????????????????????????# #????????????????????? | | ????????????????????????# #????????????????????? | | ????????????????????????# #????????????????????? | | ????????????????????????# #????????????????????? | | ????????????????????????# #????????????????????? | | ????????????????????????# #????????????????????? | | ????????????????????????# g #????????????????????? | | ????????????????????????#g #????????????????????? | | ????????????????????????# [ #????????????????????? | | ????????????????????????# % #????????????????????? | | ????????????????????????# ! #????????????????????? | | ????????????????????????? #????????????????????? | | ????????????????????????? ;????????????????????? | | ????????????????????????? #????????????????????? | | ????????????????????????? #????????????????????? | | ????????????????????????? #????????????????????? | | ????????????????????????? #????????????????????? | | ????????????????????????? ?????????????????????? | | ?????????????????????????????????????????????????? | | ?????????????????????????????????????????????????? | | ?????????????????????????????????????????????????? | | ?????????????????????????????????????????????????? | | ?????????????????????????????????????????????????? | | ?????????????????????????????????????????????????? | +----------------------------------------------------+ Best States ------------- Heat Dissipation 28 Energy Generation 10 Energy Capacity 250 Matter Stores 300 Matter Capacity 300 Sight Range 16 Terrain Scan Density 10 Armor Coverage 150 Evasion (%) 45 Recoil Reduction 2 Item Schematics ----------------- None Robot Schematics ------------------ None Fabricated ------------ Nothing Alien Tech Used ----------------- None Achievements -------------- None Challenges ------------ None Game ------ Seed CatalystMetafiberField Manual? 1 Play Time 00:09:37 Cumulative 309.5 hours Start 2022.08.11 @ 15:20:45 End 2022.08.11 @ 15:33:10 Sessions 1 Manual Loads 0 Difficulty Rogue Special Mode None Game No. 150 Rogue 146 Adventurer 0 Explorer 4 Win Type - Total 16 Types 4/0/2/4/1/2/3/0/0 Lore% 77 Gallery% 84 Achievement% 75 Wizard Run 0 Options --------- ASCII 0 Keyboard 0 Movement Mouse Keybinds 0 Fullscreen 1 Font 18/SmallcapsGlow Map View 76x50 Tactical HUD 1 Map Filters NONE Filters NONE Steam 1 RUN: 6e9cf9bb-3fca-46c8-b8ed-6a42dc27206f